{"text_format":"2","workbook":"xlsx","n_sheets":11,"sheets":["Záradék","Összesítő","Bontás, építőanyagok újrahaszno","Felvonulási létesítmények","Dúcolás, földpartmegtámasztás","Irtás, föld- és sziklamunka","Helyszíni beton és vasbeton mun","Közműcsatorna-építés","Kőburkolat készítése","Bitumenes alap és makadámburkol","Szabadtéri, szabadidő és sportl"],"not_rendered":{"charts":0,"images":0,"macros":0,"external_links":0,"defined_names":1,"comments":0,"pivot_tables":0},"unopened":[],"bounds":{"document_bytes":16777216,"sheet_cells":100000,"run_cost":"one","rows_first":2000,"rows_last":500,"rows_between":2000,"halvings":0,"cell_chars":16384,"cell_head_chars":4096},"cells_cut":0,"cells_raw":0,"read":"whole","date_system":"1900"}

{"sheet":"Záradék","index":0,"n_rows":36,"n_cols":4,"rows_kept":36,"cut":false,"hidden":false,"merged":[[27,2,27,3],[8,0,8,3],[34,1,34,2],[35,1,35,2],[5,0,5,3],[6,0,6,3],[21,0,21,3],[25,2,25,3],[26,2,26,3],[0,0,0,3],[1,0,1,3],[2,0,2,3],[3,0,3,3],[4,0,4,3]]}
{"$rows_empty":9}
["                                       ",null,"                                       "]
["Cím :                     "]
["Szeged, Semmelweis u.1"]
["                                       "]
["                                       "]
["A munka leírása:                       "]
["Szeged, Szülészeti és Nőgyógyászati Klinika"]
["Szennyvíz csatorna szakasz felújítása"]
["                                                                              "]
[]
["                                                                              "]
[]
["Árajánlat"]
["Megnevezés",null,"Anyagköltség","Díjköltség"]
["1. Építmény közvetlen költségei",null,{"$f":"Összesítő!B11","v":0}]
["1.1 Közvetlen önköltség összesen",null,{"$f":"ROUND(C24,0)","v":0},{"$f":"ROUND(D24,0)","v":0}]
["2.1 ÁFA vetítési alap",null,{"$f":"ROUND(C25+D25,0)","v":0}]
["2.2 Áfa",0.27,{"$f":"ROUND(C26*B27,0)","v":0}]
["3.  A munka ára",null,{"$f":"ROUND(C26+C27,0)","v":0}]
[]
[]
[]
[]
[]
[]
[null,"Aláírás"]
[null,"2021-09-27"]

{"sheet":"Összesítő","index":1,"n_rows":11,"n_cols":3,"rows_kept":11,"cut":false,"hidden":false,"merged":[]}
["Munkanem megnevezése","Anyag összege","Díj összege"]
["Bontás, építőanyagok újrahasznosítása"]
["Felvonulási létesítmények"]
["Dúcolás, földpartmegtámasztás"]
["Irtás, föld- és sziklamunka"]
["Helyszíni beton és vasbeton munka"]
["Közműcsatorna-építés"]
["Kőburkolat készítése"]
["Bitumenes alap és makadámburkolat készítése"]
["Szabadtéri, szabadidő és sportlétesítmények"]
["Összesen:",{"$f":"SUM(B2:B10)","v":0},{"$f":"SUM(C2:C10)","v":0}]

{"sheet":"Bontás, építőanyagok újrahaszno","index":2,"n_rows":6,"n_cols":9,"rows_kept":6,"cut":false,"hidden":false,"merged":[]}
["Ssz.","Tételszám","Tétel szövege","Menny.","Egység","Anyag egységár","Díj egységre","Anyag összesen","Díj összesen"]
[1,"K","Aszfalt burkolat bontása gépi erővel kiegészítő kézi munkával",1.8,"m3",0,0,{"$f":"ROUND(D2*F2, 0)","v":0},{"$f":"ROUND(D2*G2, 0)","v":0}]
[2,"K","Betonburkolat  bontása gépi erővel kiegészítő kézi munkával.",6.8,"m3",0,null,{"$f":"ROUND(D3*F3, 0)","v":0},{"$f":"ROUND(D3*G3, 0)","v":0}]
[3,"K","Járda szegély bontása gépi erővel kiegészítő kézi munkával.",30,"fm",0,null,{"$f":"ROUND(D4*F4, 0)","v":0},{"$f":"ROUND(D4*G4, 0)","v":0}]
[4,"02-030-1.1.1","Bontott, szelektált építési törmelék,felrakása szállítóeszközre gépi erővel, kiegészítő kézi munkával. Szállítás újrahasznosító üzembe, lerakóhelyi díjjal.",12.6,"m3",null,null,{"$f":"ROUND(D5*F5, 0)","v":0}]
[null,null,"Munkanem összesen:",{"$nulls":4},{"$f":"ROUND(SUM(H2:H5),0)","v":0},{"$f":"ROUND(SUM(I2:I5),0)","v":0}]

{"sheet":"Felvonulási létesítmények","index":3,"n_rows":5,"n_cols":9,"rows_kept":5,"cut":false,"hidden":false,"merged":[]}
["Ssz.","Tételszám","Tétel szövege","Menny.","Egység","Anyag egységár","Díj egységre","Anyag összesen","Díj összesen"]
[1,"12-011-1.1-0025001","Mobil WC bérleti díj elszámolása, szállítással, heti karbantartással Mobil W.C. bérleti díj/hó",1,"db",null,0,{"$f":"ROUND(D2*F2, 0)","v":0},{"$f":"ROUND(D2*G2, 0)","v":0}]
[2,"12-012-1.1.1-0025002","Megvalósulási dokumentáció készítése",1,"klt",null,null,{"$f":"ROUND(D3*F3, 0)","v":0},{"$f":"ROUND(D3*G3, 0)","v":0}]
[3,"12-021-1.1-0121601","Ideiglenes kerítés, mobil kerítés elhelyezése, tartozékokkal.",15,"m",0,null,0]
[null,null,"Munkanem összesen:",{"$nulls":4},{"$f":"ROUND(SUM(H2:H4),0)","v":0},{"$f":"ROUND(SUM(I2:I4),0)","v":0}]

{"sheet":"Dúcolás, földpartmegtámasztás","index":4,"n_rows":3,"n_cols":9,"rows_kept":3,"cut":false,"hidden":false,"merged":[]}
["Ssz.","Tételszám","Tétel szövege","Menny.","Egység","Anyag egységár","Díj egységre","Anyag összesen","Díj összesen"]
[1,"13-001-1.1.1.2","Munkaárok dúcolása és bontása 5,00 m mélységig, 5,00 m szélességig, kétoldali dúcolással, vízszintes pallózással, 0,80-2,00 m árokszélesség között, zártsorú",120,"m2",null,null,{"$f":"ROUND(D2*F2, 0)","v":0}]
[null,null,"Munkanem összesen:",{"$nulls":4},{"$f":"ROUND(SUM(H2:H2),0)","v":0},{"$f":"ROUND(SUM(I2:I2),0)","v":0}]

{"sheet":"Irtás, föld- és sziklamunka","index":5,"n_rows":13,"n_cols":9,"rows_kept":13,"cut":false,"hidden":false,"merged":[]}
["Ssz.","Tételszám","Tétel szövege","Menny.","Egység","Anyag egységár","Díj egységre","Anyag összesen","Díj összesen"]
[1,"21-003-2.1.1","Közmű feltárása kézi erővel, talajosztály: I-II.",3,"m3",0,null,{"$f":"ROUND(D2*F2, 0)","v":0},{"$f":"ROUND(D2*G2, 0)","v":0}]
[2,"21-003-6.2.1.1","Munkaárok földkiemelése közművesített területen, kézi erővel, bármely konzisztenciájú talajban, dúcolás nélkül helyszíni deponálással.",90,"m3",null,null,0,0]
[3,"21-003-11.2.1","Földvisszatöltés munkagödörbe vagy munkaárokba, tömörítés nélkül, réteges elterítéssel, I-IV. osztályú talajban, gépi erővel, az anyag súlypontja 10,0 m-en belül, a vezetéket (műtárgyat) környező 50 cm-en túli szelvényrészben",5.6,"m3",0,null,0,0]
[4,"21-004-4.1.2-0120189","Talajjavító réteg készítése vonalas létesítményeknél, 3,00 m szélességig vagy építményen belül, osztályozatlan kavicsból Természetes szemmegoszlású homokos kavics, THK 0/32 P-TT, Nyékládháza",9,"m3",null,null,null,0]
[5,"21-004-5.1.1.1","Tükörkészítés tömörítéssel sík felületen gépi erővel, kiegészítő kézi munkával talajosztály: I-IV.",45,"m2",0,null,0]
[6,"21-008-2.2.2","Tömörítés bármely tömörítési osztályban gépi erővel, kis felületen, tömörségi fok: 90% (Járda, homokos kavics ágyazat)",9,"m3",null,null,0,0]
[7,"21-008-2.2.3","Tömörítés bármely tömörítési osztályban gépi erővel, kis felületen, (Nyomvonal, föld feltöltés)",5.6,"m3",null,null,0,0]
[8,"21-008-2.2.3-0000002","Tömörítés bármely tömörítési osztályban gépi erővel, kis felületen, tömörségi fok: 95% (Homok feltöltés)",69.8,"m3",null,null,0,0]
[9,"21-011-1.2.1-0000002","Fejtett föld felrakása szállítóeszközre, géppel, kiegészítő kézi erővel. Elszállítása lerakóba, lerakóhelyi díjjal.",82.8,"m3",null,null,0,0]
[10,"21-011-7.1-0120403","Feltöltés készítése, csővezeték alsó és felső takarása, az anyag szétterítésével, mozgatásával bánya homokból.",69.8,"m3",null,null,0,0]
[11,"21-011-8.1-0120231","Talajjavító réteg készítése, Természetes szemmegoszlású homokos kavics, THK 0/24 (Járda)",3.4,"m3",null,null,0,0]
[null,null,"Munkanem összesen:",{"$nulls":4},{"$f":"ROUND(SUM(H2:H12),0)","v":0},{"$f":"ROUND(SUM(I2:I12),0)","v":0}]

{"sheet":"Helyszíni beton és vasbeton mun","index":6,"n_rows":5,"n_cols":9,"rows_kept":5,"cut":false,"hidden":false,"merged":[]}
["Ssz.","Tételszám","Tétel szövege","Menny.","Egység","Anyag egységár","Díj egységre","Anyag összesen","Díj összesen"]
[1,"K","Aszfalt burkolat gépi vágása",10,"m",0,null,{"$f":"ROUND(D2*F2, 0)","v":0},{"$f":"ROUND(D2*G2, 0)","v":0}]
[2,"K","Beton és vasbeton szerkezetek felületi javítása, erősítőszövet vagy szalag beágyazása epoxi bázisú habarcsba SIKA KANAL 820 anyaggal. (Künet képzéssel)",5,"m2",null,null,{"$f":"ROUND(D3*F3, 0)","v":0},{"$f":"ROUND(D3*G3, 0)","v":0}]
[3,"K","Beton burkolat alap készítése,tömörítéssel 15 cm vastagságig Ckt.-4",4.5,"m3",null,null,{"$f":"ROUND(D4*F4, 0)","v":0},{"$f":"ROUND(D4*G4, 0)","v":0}]
[null,null,"Munkanem összesen:",{"$nulls":4},{"$f":"ROUND(SUM(H2:H4),0)","v":0},{"$f":"ROUND(SUM(I2:I4),0)","v":0}]

{"sheet":"Közműcsatorna-építés","index":7,"n_rows":6,"n_cols":9,"rows_kept":6,"cut":false,"hidden":false,"merged":[]}
["Ssz.","Tételszám","Tétel szövege","Menny.","Egység","Anyag egységár","Díj egységre","Anyag összesen","Díj összesen"]
[1,"53-001-31.3.2.2-0131553","Egyoldalon tokos műanyag csatornacső beépítése földárokba, gumigyűrűs kötéssel, csőidomokkal külső csőátmérő: 400 mm  PVC-U tömörfalú tokos csatornacső 400x9,8x3000 mm SN4 MSZEN1401, KGEM400/3M.SN4",30,"m",null,null,{"$f":"ROUND(D2*F2, 0)","v":0},{"$f":"ROUND(D2*G2, 0)","v":0}]
[2,"53-004-1.2-1110001","Üzemben lévő csatorna ideiglenes vízzáró elfalazása  belső csőátmérő vagy vállméret: 40-50 cm között",2,"db",null,null,{"$f":"ROUND(D3*F3, 0)","v":0},{"$f":"ROUND(D3*G3, 0)","v":0}]
[4,"53-009-1.2-0000002","Csatorna kamerás vizsgálata csatorna belmérete: 40 cm",30,"m",0,null,{"$f":"ROUND(D4*F4, 0)","v":0},{"$f":"ROUND(D4*G4, 0)","v":0}]
[5,"K","Akna lezárásakor keletkezett szennyvíz, ideiglenes átemelés.",1,"klt.",0,null,{"$f":"ROUND(D5*F5, 0)","v":0},{"$f":"ROUND(D5*G5, 0)","v":0}]
[null,null,"Munkanem összesen:",{"$nulls":4},{"$f":"ROUND(SUM(H2:H5),0)","v":0},{"$f":"ROUND(SUM(I2:I5),0)","v":0}]

{"sheet":"Kőburkolat készítése","index":8,"n_rows":5,"n_cols":9,"rows_kept":5,"cut":false,"hidden":false,"merged":[]}
["Ssz.","Tételszám","Tétel szövege","Menny.","Egység","Anyag egységár","Díj egységre","Anyag összesen","Díj összesen"]
[1,"62-002-1.4.2-0619060","Szegély készítése, alapárok kiemelésével, beton alapgerendával és megtámasztással, hézagolással, előregyártott szegélykőből 100 cm hosszú elemekből  kerti szegélykő, 100x5x20cm, Szürke,  C12/15 - XN(H) - 16 - F1 - CEM 32,5, m = 6,3 finomsági modulussal",{"$f":"30+3","v":33},"m",null,null,{"$f":"ROUND(D2*F2, 0)","v":0}]
[2,"K","Gyeprácskő 40x40x8 cm, szürke bontása, kézi erővel. Bontott anyag raklapra rakása.",14.4,"m2",0,null,{"$f":"ROUND(D3*F3, 0)","v":0},{"$f":"ROUND(D3*G3, 0)","v":0}]
[3,"K","Bontott gyeprácskő elhelyezése előre elkészített (kiegyenlített) burkolat alapra. (Szükség szerinti pótlással)",14.4,"m2",null,null,null,{"$f":"ROUND(D4*G4, 0)","v":0}]
[null,null,"Munkanem összesen:",{"$nulls":4},{"$f":"ROUND(SUM(H2:H4),0)","v":0},{"$f":"ROUND(SUM(I2:I4),0)","v":0}]

{"sheet":"Bitumenes alap és makadámburkol","index":9,"n_rows":3,"n_cols":9,"rows_kept":3,"cut":false,"hidden":false,"merged":[]}
["Ssz.","Tételszám","Tétel szövege","Menny.","Egység","Anyag egységár","Díj egységre","Anyag összesen","Díj összesen"]
[1,"63-103-1.31.1.2-0750202","Egyéb közutak bitumenes burkolatának készítése, hengerelt aszfalt kopóréteg készítése (AC), az alatta lévő réteg felületének előzetes letakarításával és bitumenes permetezéssel, 3,2 méter szélességig, AC 8 kopó aszfaltkeverékből, 25-45 mm vastagságban terítve Kopóréteg AC8 kopó 50/70, AC8 kopó 70/100 típusú bitumennel, N igénybevételi kat. útszakaszok kopórétege, homokkal, zúzalékkal",2,"m3",null,null,{"$f":"ROUND(D2*F2, 0)","v":0},{"$f":"ROUND(D2*G2, 0)","v":0}]
[null,null,"Munkanem összesen:",{"$nulls":4},{"$f":"ROUND(SUM(H2:H2),0)","v":0},{"$f":"ROUND(SUM(I2:I2),0)","v":0}]

{"sheet":"Szabadtéri, szabadidő és sportl","index":10,"n_rows":4,"n_cols":9,"rows_kept":4,"cut":false,"hidden":false,"merged":[]}
["Ssz.","Tételszám","Tétel szövege","Menny.","Egység","Anyag egységár","Díj egységre","Anyag összesen","Díj összesen"]
[1,"92-000-2.5.2.1","Kerékpártároló bontása fémtartó",5,"db",null,null,{"$f":"ROUND(D2*F2, 0)","v":0},{"$f":"ROUND(D2*G2, 0)","v":0}]
[2,"92-000-2.5.2.1-0000002","Bontott kerékpártároló elhelyezése, beton alaptest kiképzéssel.",5,"db",null,null,{"$f":"ROUND(D3*F3, 0)","v":0}]
[null,null,"Munkanem összesen:",{"$nulls":4},{"$f":"ROUND(SUM(H2:H3),0)","v":0},{"$f":"ROUND(SUM(I2:I3),0)","v":0}]